fUSD/lending_fUSD_20241207
["ID","MTS","AMOUNT","RATE_DAILY","PERIOD"]
[344529825,1733536334728,-919.96,0.00012052,2]
[344529826,1733536334738,-503.5986322,0.00012052,2]
[344529827,1733536334748,-2028.99,0.00012052,2]
[344529828,1733536334759,-500.0,0.00012052,2]
[344529829,1733536334769,-1957.15,0.00012052,2]
[344529830,1733536334779,-500.44903382,0.00012052,2]
[344529831,1733536334789,-500.60260687,0.00012052,2]
[344529832,1733536334799,-1074.67,0.00012052,2]
[344529833,1733536334809,-500.0,0.00012052,2]
[344529834,1733536334819,-1596.59,0.00012052,2]
[344529835,1733536334829,-500.0,0.00012052,2]
[344529836,1733536334840,-500.42719576,0.00012052,2]
[344529837,1733536334850,-500.0,0.00012052,2]
[344529838,1733536334860,-534.65,0.00012052,2]
[344529839,1733536334870,-500.0,0.00012052,2]
[344529840,1733536334881,-500.0,0.00012052,2]
[344529841,1733536334893,-1462.96,0.00012052,2]
[344529842,1733536334903,-500.0,0.00012052,2]
[344529843,1733536334913,-500.0,0.00012052,2]
[344529844,1733536334923,-500.0,0.00012052,2]
[344529845,1733536334933,-500.0,0.00012052,2]
[344529846,1733536334944,-500.0,0.00012052,2]
[344529847,1733536334954,-500.0,0.00012052,2]
[344529848,1733536334965,-854.27,0.00012052,2]
[344529849,1733536334976,-500.0,0.00012052,2]
[344529850,1733536334985,-952.41,0.00012052,2]
[344529851,1733536334995,-500.0,0.00012052,2]
[344529852,1733536335005,-500.0,0.00012052,2]
[344529853,1733536335016,-1923.16,0.00012052,2]
[344529854,1733536335029,-1220.83,0.00012052,2]
[344529855,1733536335039,-500.0,0.00012052,2]
[344529856,1733536335050,-500.0,0.00012052,2]
[344529857,1733536335061,-1173.25,0.00012052,2]
[344529858,1733536335071,-500.0,0.00012052,2]
[344529859,1733536335080,-500.0,0.00012052,2]
[344529860,1733536335090,-1427.49,0.00012052,2]
[344529861,1733536335101,-500.0,0.00012052,2]
[344529862,1733536335112,-1132.29,0.00012052,2]
[344529863,1733536335121,-500.0,0.00012052,2]
[344529864,1733536335131,-1988.24,0.00012052,2]
[344529865,1733536335143,-2268.55,0.00012052,2]
[344529866,1733536335153,-500.0,0.00012052,2]
[344529867,1733536335163,-500.0,0.00012052,2]
[344529868,1733536335172,-1649.72,0.00012052,2]
[344529869,1733536335182,-500.0,0.00012052,2]
[344529870,1733536335192,-838.85,0.00012052,2]
[344529871,1733536335202,-1204.84,0.00012052,2]
[344529872,1733536335213,-500.0,0.00012052,2]
[344529873,1733536335223,-1419.07,0.00012052,2]
[344529874,1733536335233,-672.22,0.00012052,2]
[344529875,1733536335243,-500.0,0.00012052,2]
[344529876,1733536335253,-500.0,0.00012052,2]
[344529877,1733536335263,-500.0,0.00012052,2]
[344529878,1733536335274,-1429.7,0.00012052,2]
[344529879,1733536335284,-500.0,0.00012052,2]
[344529880,1733536335294,-1164.95,0.00012052,2]
[344529881,1733536335304,-500.0,0.00012052,2]
[344529882,1733536335315,-1139.75,0.00012052,2]
[344529883,1733536335324,-500.0,0.00012052,2]
[344529884,1733536335334,-500.0,0.00012052,2]
[344529885,1733536335344,-500.0,0.00012052,2]
[344529886,1733536335354,-500.0,0.00012052,2]
[344529887,1733536335365,-874.05,0.00012052,2]
[344529888,1733536335375,-788.76,0.00012052,2]
[344529889,1733536335385,-500.0,0.00012052,2]
[344529890,1733536335397,-500.0,0.00012052,2]
[344529891,1733536335407,-500.0,0.00012052,2]
[344529892,1733536335417,-2270.59,0.00012052,2]
[344529893,1733536335427,-821.23,0.00012052,2]
[344529894,1733536335437,-500.0,0.00012052,2]
[344529895,1733536335446,-1579.83,0.00012052,2]
[344529896,1733536335456,-500.0,0.00012052,2]
[344529897,1733536335466,-500.0,0.00012052,2]
[344529898,1733536335475,-500.0,0.00012052,2]
[344529899,1733536335485,-693.82,0.00012052,2]
[344529900,1733536335495,-1496.96,0.00012052,2]
[344529901,1733536335505,-500.0,0.00012052,2]
[344529902,1733536335515,-1337.46,0.00012052,2]
[344529903,1733536335524,-1067.55,0.00012052,2]
[344529904,1733536335534,-909.31,0.00012052,2]
[344529905,1733536335544,-500.0,0.00012052,2]
[344529906,1733536335554,-1306.23,0.00012052,2]
[344529907,1733536335564,-4172.15,0.00012052,2]
[344529908,1733536335573,-500.0,0.00012052,2]
[344529909,1733536335584,-3682.15,0.00012052,2]
[344529910,1733536335594,-504.47714202,0.00012052,2]
[344529911,1733536335604,-2451.74,0.00012052,2]
[344529912,1733536335613,-500.0,0.00012052,2]
[344529913,1733536335623,-1388.88,0.00012052,2]
[344529914,1733536335633,-500.0,0.00012052,2]
[344529915,1733536335645,-873.88,0.00012052,2]
[344529916,1733536335655,-500.0,0.00012052,2]
[344529917,1733536335665,-807.12,0.00012052,2]
[344529918,1733536335675,-807.12,0.00012052,2]
[344529919,1733536335685,-12615.43,0.00012052,2]
[344529920,1733536335695,-531.19,0.00012052,2]
[344529921,1733536335705,-1534.76,0.00012052,2]
[344529922,1733536335714,-1375.96,0.00012052,2]
[344529923,1733536335724,-3418.5,0.00012052,2]
[344529924,1733536335734,-3762.16,0.00012052,2]
[344529925,1733536335743,-1672.75,0.00012052,2]
[344529926,1733536335752,-1386.08,0.00012052,2]
[344529927,1733536335762,-559.13706334,0.00012052,2]
[344529928,1733536335772,-5487.01,0.00012052,2]
[344529929,1733536335782,-1319.83,0.00012052,2]
[344529930,1733536335791,-1615.88,0.00012052,2]
[344529931,1733536335800,-500.0,0.00012052,2]
[344529932,1733536335810,-3508.25,0.00012052,2]
[344529933,1733536335820,-1212.79,0.00012052,2]
[344529934,1733536335830,-500.0,0.00012052,2]
[344529935,1733536335839,-3134.44,0.00012052,2]
[344529936,1733536335850,-500.0,0.00012052,2]
[344529937,1733536335860,-1417.37,0.00012052,2]
[344529938,1733536335870,-2607.01,0.00012052,2]
[344529939,1733536335880,-500.0,0.00012052,2]
[344529940,1733536335891,-2314.85,0.00012052,2]
[344529941,1733536335901,-500.0,0.00012052,2]
[344529942,1733536335911,-1066.22,0.00012052,2]
[344529943,1733536335920,-1855.42,0.00012052,2]
[344529944,1733536335930,-3863.17,0.00012052,2]
[344529945,1733536335940,-2316.43,0.00012052,2]
[344529946,1733536335950,-1758.84,0.00012052,2]
[344529947,1733536336288,-500.0,0.00012052,2]
[344529948,1733536336309,-500.0,0.00012052,2]
[344529949,1733536336319,-513.82,0.00012052,2]
[344529950,1733536336329,-500.0,0.00012052,2]
[344529951,1733536336338,-904.08,0.00012052,2]
[344529952,1733536336348,-500.0,0.00012052,2]
[344529953,1733536336357,-2971.06,0.00012052,2]
[344529954,1733536336367,-607.67,0.00012052,2]
[344529955,1733536336376,-908.45,0.00012052,2]
[344529956,1733536336386,-500.0,0.00012052,2]
[344529957,1733536336398,-2730.04,0.00012052,2]
[344529958,1733536336408,-601.7,0.00012052,2]
[344529959,1733536336417,-1655.05,0.00012052,2]
[344529960,1733536336427,-1390.17,0.00012052,2]
[344529961,1733536336436,-1410.09,0.00012052,2]
[344529962,1733536336446,-1232.19,0.00012052,2]
[344529963,1733536336456,-668.26,0.00012052,2]
[344529964,1733536336465,-1273.21,0.00012052,2]
[344529965,1733536336475,-500.0,0.00012052,2]
[344529966,1733536336485,-500.0,0.00012052,2]
[344529967,1733536336494,-3636.84,0.00012052,2]
[344529968,1733536336504,-2436.97,0.00012052,2]
[344529969,1733536336513,-500.0,0.00012052,2]
[344529970,1733536336523,-256.01242486,0.00012053,2]
[344529971,1733536336532,-500.0,0.00012053,2]
[344529972,1733536336541,-500.0,0.00012053,2]
[344529973,1733536336550,-500.0,0.00012053,2]
[344529974,1733536336560,-500.0,0.00012053,2]
[344529975,1733536336569,-1010.16,0.00012053,2]
[344529976,1733536336579,-500.0,0.00012053,2]
[344529977,1733536336588,-500.0,0.00012053,2]
[344529978,1733536336597,-500.0,0.00012053,2]
[344529979,1733536336607,-500.0,0.00012053,2]
[344529980,1733536336616,-500.0,0.00012053,2]
[344529981,1733536336626,-500.0,0.00012053,2]
[344529982,1733536336636,-569.95495582,0.00012053,2]
[344529983,1733536336648,-605.55,0.00012053,2]
[344529984,1733536336657,-500.0,0.00012053,2]
[344529985,1733536336667,-500.0,0.00012053,2]
[344529986,1733536336677,-169.60633084,0.00012053,2]
[344529987,1733536336687,-500.0,0.00012053,2]
[344529988,1733536336696,-500.0,0.00012053,2]
[344529989,1733536336706,-530.05311761,0.00012053,2]
[344529990,1733536336716,-500.0,0.00012053,2]
[344529991,1733536336726,-186.46107917,0.00012053,2]
[344529992,1733536336735,-500.0,0.00012053,2]
[344529993,1733536336745,-500.0,0.00012053,2]
[344529994,1733536336755,-500.0,0.00012053,2]
[344529995,1733536336764,-500.0,0.00012053,2]
[344529996,1733536336773,-500.0,0.00012053,2]
[344529997,1733536336783,-500.79157058,0.00012053,2]
[344529998,1733536336792,-2000.0,0.00012053,2]
[344529999,1733536336802,-500.0,0.00012053,2]
[344530000,1733536336811,-1189.5,0.00012053,2]
[344530001,1733536336821,-500.0,0.00012053,2]
[344530002,1733536336830,-691.44,0.00012053,2]
[344530003,1733536336839,-500.0,0.00012053,2]
[344530004,1733536336850,-593.21,0.00012053,2]
[344530005,1733536336859,-500.0,0.00012053,2]
[344530006,1733536336869,-500.0,0.00012053,2]
[344530007,1733536336879,-575.21,0.00012053,2]
[344530008,1733536336891,-760.02,0.00012053,2]
[344530009,1733536336900,-997.85,0.00012053,2]
[344530010,1733536336910,-500.0,0.00012053,2]
[344530011,1733536336919,-569.15,0.00012053,2]
[344530012,1733536336929,-1576.42,0.00012053,2]
[344530013,1733536336939,-968.36,0.00012053,2]
[344530014,1733536336949,-649.06,0.00012053,2]
[344530015,1733536336958,-1164.89,0.00012053,2]
[344530016,1733536336968,-500.0,0.00012053,2]
[344530017,1733536336979,-500.0,0.00012053,2]
[344530018,1733536336988,-500.0,0.00012053,2]
[344530019,1733536336998,-500.0,0.00012053,2]
[344530020,1733536337008,-1156.26,0.00012053,2]
[344530021,1733536337017,-500.0,0.00012053,2]
[344530022,1733536337031,-602.11,0.00012053,2]
[344530023,1733536337041,-500.0,0.00012053,2]
[344530024,1733536337050,-500.0,0.00012053,2]
[344530025,1733536337059,-500.0,0.00012053,2]
[344530026,1733536337070,-1076.61,0.00012053,2]
[344530027,1733536337080,-973.36,0.00012053,2]
[344530028,1733536337090,-500.0,0.00012053,2]
[344530029,1733536337100,-500.0,0.00012053,2]
[344530030,1733536337110,-700.55,0.00012053,2]
[344530031,1733536337119,-667.19,0.00012053,2]
[344530032,1733536337128,-500.0,0.00012053,2]
[344530033,1733536337138,-920.45,0.00012053,2]
[344530034,1733536337149,-500.0,0.00012053,2]
[344530035,1733536337159,-1231.3,0.00012053,2]
[344530036,1733536337168,-901.24,0.00012053,2]
[344530037,1733536337177,-2088.05,0.00012053,2]
[344530038,1733536337186,-600.34,0.00012053,2]
[344530039,1733536337196,-1450.85,0.00012053,2]
[344530040,1733536337205,-993.78,0.00012053,2]
[344530041,1733536337215,-573.52,0.00012053,2]
[344530042,1733536337225,-1382.36,0.00012053,2]
[344530043,1733536337234,-516.23,0.00012053,2]
[344530044,1733536337244,-1010.6,0.00012053,2]
[344530045,1733536337254,-500.0,0.00012053,2]
[344530046,1733536337263,-500.0,0.00012053,2]
[344530047,1733536337272,-1088.16,0.00012053,2]
[344530048,1733536337282,-583.14,0.00012053,2]
[344530049,1733536337292,-555.3426306,0.00012053,2]
[344530050,1733536337301,-500.0,0.00012053,2]
[344530051,1733536337311,-500.0,0.00012053,2]
[344530052,1733536337320,-340.89111836,0.00012053,2]
[344530053,1733536337330,-500.0,0.00012053,2]
[344530054,1733536337339,-1163.95,0.00012053,2]
[344530055,1733536337348,-500.0,0.00012053,2]
[344530056,1733536337357,-1200.64,0.00012053,2]
[344530057,1733536337367,-500.0,0.00012053,2]
[344530058,1733536337376,-758.44,0.00012053,2]
[344530059,1733536337386,-2130.51,0.00012053,2]
[344530060,1733536337397,-639.62,0.00012053,2]
[344530061,1733536337407,-500.0,0.00012053,2]
[344530062,1733536337416,-500.0,0.00012053,2]
[344530063,1733536337425,-541.83,0.00012053,2]
[344530064,1733536337434,-500.0,0.00012053,2]
[344530065,1733536337444,-500.0,0.00012053,2]
[344530066,1733536337453,-735.14,0.00012053,2]
[344530067,1733536337463,-1954.45,0.00012053,2]
[344530068,1733536337472,-782.84,0.00012053,2]
[344530069,1733536337482,-509.59881251,0.00012053,2]
[344530070,1733536337492,-500.0,0.00012053,2]
[344530071,1733536337501,-503.74,0.00012053,2]
[344530072,1733536337511,-2507.35,0.00012053,2]
[344530073,1733536337521,-500.0,0.00012053,2]
[344530074,1733536337531,-500.0,0.00012053,2]
[344530075,1733536337541,-500.0,0.00012053,2]
[344530076,1733536337551,-500.0,0.00012053,2]
[344530077,1733536337560,-1670.54,0.00012053,2]
[344530078,1733536337570,-597.31636538,0.00012053,2]
[344530079,1733536337579,-3627.1,0.00012053,2]
[344530080,1733536337589,-637.28,0.00012053,2]
[344530081,1733536337598,-2426.48,0.00012053,2]
[344530082,1733536337607,-500.0,0.00012053,2]
[344530083,1733536337616,-835.68,0.00012053,2]
[344530084,1733536337626,-500.0,0.00012053,2]
[344530085,1733536337635,-628.51,0.00012053,2]
[344530086,1733536337646,-500.26107284,0.00012053,2]
[344530087,1733536337656,-553.52,0.00012053,2]
[344530088,1733536337666,-500.0,0.00012053,2]
[344530089,1733536337675,-1240.03,0.00012053,2]
[344530090,1733536337685,-1044.07,0.00012053,2]
[344530091,1733536337695,-1404.78,0.00012053,2]
[344530092,1733536337704,-500.0,0.00012053,2]
[344530093,1733536337714,-1794.48,0.00012053,2]
[344530094,1733536337723,-1613.0,0.00012053,2]
[344530095,1733536337732,-500.0,0.00012053,2]
[344530096,1733536337742,-500.0,0.00012053,2]
[344530097,1733536337751,-762.01,0.00012053,2]
[344530098,1733536337760,-1379.89,0.00012053,2]
[344530099,1733536337770,-1019.21,0.00012053,2]
[344530100,1733536337779,-1651.01,0.00012053,2]
[344530101,1733536337788,-565.59556636,0.00012053,2]
[344530102,1733536337797,-744.38,0.00012053,2]
[344530103,1733536337807,-1915.65,0.00012053,2]
[344530104,1733536337816,-834.64,0.00012053,2]
[344530105,1733536337825,-966.56,0.00012053,2]
[344530106,1733536337834,-500.0,0.00012053,2]
[344530107,1733536337843,-500.0,0.00012053,2]
[344530108,1733536337853,-500.0,0.00012053,2]
[344530109,1733536337863,-500.0,0.00012053,2]
[344530110,1733536337873,-1214.3,0.00012053,2]
[344530111,1733536337883,-705.76,0.00012053,2]
[344530112,1733536337894,-533.65,0.00012053,2]
[344530113,1733536337903,-500.0,0.00012053,2]
[344530114,1733536337914,-500.0,0.00012053,2]
[344530115,1733536337924,-500.0,0.00012053,2]
[344530116,1733536337933,-500.0,0.00012053,2]
[344530117,1733536337943,-500.0,0.00012053,2]
[344530118,1733536337952,-1406.31,0.00012053,2]
[344530119,1733536337962,-594.92,0.00012053,2]
[344530120,1733536337971,-500.0,0.00012053,2]
[344530121,1733536337980,-500.0,0.00012053,2]
[344530122,1733536337990,-2050.62,0.00012053,2]
[344530123,1733536337999,-524.61,0.00012053,2]
[344530124,1733536338009,-708.93,0.00012053,2]
[344530125,1733536338021,-1573.14,0.00012053,2]
[344530126,1733536338031,-644.61,0.00012053,2]
[344530127,1733536338041,-828.88,0.00012053,2]
[344530128,1733536338051,-500.0,0.00012053,2]
[344530129,1733536338060,-500.0,0.00012053,2]
[344530130,1733536338071,-591.34,0.00012053,2]
[344530131,1733536338080,-962.21,0.00012053,2]
[344530132,1733536338090,-500.0,0.00012053,2]
[344530133,1733536338101,-500.0,0.00012053,2]
[344530134,1733536338112,-500.0,0.00012053,2]
[344530135,1733536338121,-727.36,0.00012053,2]
[344530136,1733536338131,-500.0,0.00012053,2]
[344530137,1733536338143,-500.0,0.00012053,2]
[344530138,1733536338156,-1695.75,0.00012053,2]
[344530139,1733536338166,-500.0,0.00012053,2]
[344530140,1733536338176,-501.15798192,0.00012053,2]
[344530141,1733536338186,-500.0,0.00012053,2]
[344530142,1733536338196,-500.0,0.00012053,2]
[344530143,1733536338206,-501.08247726,0.00012053,2]
[344530144,1733536338215,-500.0,0.00012053,2]
[344530145,1733536338225,-500.0,0.00012053,2]
[344530146,1733536338235,-511.404333,0.00012053,2]
[344530147,1733536338244,-1094.72,0.00012053,2]
[344530148,1733536338254,-500.0,0.00012053,2]
[344530149,1733536338264,-1072.02,0.00012053,2]
[344530150,1733536338274,-9961.93,0.00012053,2]
[344530151,1733536338283,-2541.91,0.00012053,2]
[344530152,1733536338293,-1111.7,0.00012053,2]
[344530153,1733536338303,-883.19,0.00012053,2]
[344530154,1733536338313,-500.0,0.00012053,2]
[344530155,1733536338322,-654.68,0.00012053,2]
[344530156,1733536338332,-897.52,0.00012053,2]
[344530157,1733536338342,-652.62,0.00012053,2]
[344530158,1733536338352,-1954.67,0.00012053,2]
[344530159,1733536338362,-1297.46,0.00012053,2]
[344530160,1733536338371,-500.0,0.00012053,2]
[344530161,1733536338380,-2400.98,0.00012053,2]
[344530162,1733536338393,-500.0,0.00012053,2]
[344530163,1733536338403,-1492.09,0.00012053,2]
[344530164,1733536338413,-500.0,0.00012053,2]
[344530165,1733536338423,-1153.18,0.00012053,2]
[344530166,1733536338433,-3028.83,0.00012053,2]
[344530167,1733536338442,-500.0,0.00012053,2]
[344530168,1733536338452,-500.0,0.00012053,2]
[344530169,1733536338462,-500.0,0.00012053,2]
[344530170,1733536338471,-620.79,0.00012053,2]
[344530171,1733536338481,-566.85,0.00012053,2]
[344530172,1733536338491,-10531.06,0.00012053,2]
[344530173,1733536338501,-500.0,0.00012053,2]
[344530174,1733536338511,-1407.02,0.00012053,2]
[344530175,1733536338520,-574.66041048,0.00012053,2]
[344530176,1733536338530,-1426.66,0.00012053,2]
[344530177,1733536338540,-2365.74,0.00012053,2]
[344530178,1733536338549,-998.54,0.00012053,2]
[344530179,1733536338559,-359.65537763,0.00012053,2]
[344530180,1733536338568,-2446.0,0.00012053,2]
[344530181,1733536338578,-500.0,0.00012053,2]
[344530182,1733536338588,-1369.81,0.00012053,2]
[344530183,1733536338598,-934.38,0.00012053,2]
[344530184,1733536338608,-500.0,0.00012053,2]
[344530185,1733536338618,-500.0,0.00012053,2]
[344530186,1733536338628,-500.0,0.00012053,2]
[344530187,1733536338715,-738.72,0.00012053,2]
[344530188,1733536338726,-500.0,0.00012053,2]
[344530189,1733536338736,-500.0,0.00012053,2]
[344530190,1733536338746,-1236.15,0.00012053,2]
[344530191,1733536338755,-918.81,0.00012053,2]
[344530192,1733536338764,-1259.46,0.00012053,2]
[344530193,1733536338774,-500.0,0.00012053,2]
[344530194,1733536338784,-961.29,0.00012053,2]
[344530195,1733536338794,-1580.55,0.00012053,2]
[344530196,1733536338804,-500.0,0.00012053,2]
[344530197,1733536338814,-500.0,0.00012053,2]
[344530198,1733536338823,-1658.82,0.00012053,2]
[344530199,1733536338834,-2076.32,0.00012053,2]
[344530200,1733536338843,-502.63194679,0.00012053,2]
[344530201,1733536338853,-501.39633276,0.00012053,2]
[344530202,1733536338862,-5834.62,0.00012053,2]
[344530203,1733536338872,-500.0,0.00012053,2]
[344530204,1733536338884,-726.18,0.00012053,2]
[344530205,1733536338897,-636.56,0.00012053,2]
[344530206,1733536338907,-500.0,0.00012053,2]
[344530207,1733536338916,-500.0,0.00012053,2]
[344530208,1733536338926,-653.92,0.00012053,2]
[344530209,1733536338937,-1262.13,0.00012053,2]
[344530210,1733536338947,-985.05,0.00012053,2]
[344530211,1733536338957,-908.51,0.00012053,2]
[344530212,1733536338967,-869.32,0.00012053,2]
[344530213,1733536338977,-500.0,0.00012053,2]
[344530214,1733536338987,-500.0,0.00012053,2]
[344530215,1733536338998,-500.0,0.00012053,2]
[344530216,1733536339008,-500.0,0.00012054,2]
[344530217,1733536339018,-1449.0,0.00012054,2]
[344530218,1733536339032,-500.0,0.00012054,2]
[344530219,1733536339042,-3618.33,0.00012054,2]
[344530220,1733536339052,-500.0,0.00012054,2]
[344530221,1733536339062,-990.12,0.00012054,2]
[344530222,1733536339073,-500.0,0.00012054,2]
[344530223,1733536339082,-1010.91,0.00012054,2]
[344530224,1733536339092,-1180.33,0.00012054,2]
[344530225,1733536339103,-218.47772688,0.00012054,2]
[344530226,1733536339113,-637.63,0.00012054,2]
[344530227,1733536339123,-903.24,0.00012054,2]
[344530228,1733536339133,-1081.3,0.00012054,2]
[344530229,1733536339146,-1231.81,0.00012054,2]
[344530230,1733536339155,-1080.58,0.00012054,2]
[344530231,1733536339165,-500.0,0.00012054,2]
[344530232,1733536339174,-2311.91,0.00012054,2]
[344530233,1733536339183,-500.0,0.00012054,2]
[344530234,1733536339193,-1160.55,0.00012054,2]
[344530235,1733536339202,-553.68,0.00012054,2]
[344530236,1733536339211,-500.0,0.00012054,2]
[344530237,1733536339221,-692.9,0.00012054,2]
[344530238,1733536339231,-1316.86,0.00012054,2]
[344530239,1733536339241,-945.34,0.00012054,2]
[344530240,1733536339250,-500.0,0.00012054,2]
[344530241,1733536339259,-865.87,0.00012054,2]
[344530242,1733536339268,-500.0,0.00012054,2]
[344530243,1733536339278,-2197.67,0.00012054,2]
[344530244,1733536339287,-1705.69,0.00012054,2]
[344530245,1733536339298,-1267.06,0.00012054,2]
[344530246,1733536339308,-1414.49,0.00012054,2]
[344530247,1733536339319,-1616.63,0.00012054,2]
[344530248,1733536339330,-2472.9,0.00012054,2]
[344530249,1733536339341,-1973.18,0.00012054,2]
[344530250,1733536339350,-1808.78,0.00012054,2]
[344530251,1733536339360,-765.64,0.00012054,2]
[344530252,1733536339370,-1450.65,0.00012054,2]
[344530253,1733536339381,-1036.41,0.00012054,2]
[344530254,1733536339394,-1048.28,0.00012054,2]
[344530255,1733536339404,-1201.84,0.00012054,2]
[344530256,1733536339415,-593.82,0.00012054,2]
[344530257,1733536339425,-376.29944835,0.00012054,2]
[344530258,1733536339434,-500.0,0.00012054,2]
[344530259,1733536339444,-875.63,0.00012054,2]
[344530260,1733536339454,-863.77,0.00012054,2]
[344530261,1733536339463,-935.91,0.00012054,2]
[344530262,1733536339473,-500.0,0.00012054,2]
[344530263,1733536339482,-1027.36,0.00012054,2]
[344530264,1733536339492,-804.35,0.00012054,2]
[344530265,1733536339501,-1311.72,0.00012054,2]
[344530266,1733536339511,-819.23,0.00012054,2]
[344530267,1733536339520,-1315.73,0.00012054,2]
[344530268,1733536339530,-960.54,0.00012054,2]
[344530269,1733536339539,-1551.33,0.00012054,2]
[344530270,1733536339549,-807.12,0.00012054,2]
[344530271,1733536339558,-1262.0,0.00012055,2]
[344530272,1733536339568,-567.0,0.00012055,2]
[344530273,1733536339577,-2004.0,0.00012055,2]
[344530274,1733536339586,-3761.0,0.00012055,2]
[344530275,1733536339595,-1252.0,0.00012055,2]
[344530276,1733536339604,-816.0,0.00012055,2]
[344530277,1733536339614,-535.0,0.00012055,2]
[344530278,1733536339623,-3530.0,0.00012055,2]
[344530279,1733536339633,-973.0,0.00012055,2]
[344530280,1733536339644,-13716.0,0.00012055,2]
[344530281,1733536339653,-1167.0,0.00012055,2]
[344530282,1733536339662,-150.0,0.00012055,2]
[344530283,1733536339671,-5964.0,0.00012055,2]
[344530284,1733536339680,-338.749,0.00012055,2]
[344530285,1733536339690,-45066.17,0.00012055,2]
[344530286,1733536339699,-3574.29012436,0.0001211,7]
[344530287,1733536339709,-1762.44390139,0.00012127,2]
[344530288,1733536339719,-433.0,0.00012143,2]
[344530289,1733536339728,-3925.86627845,0.00012152,2]
[344530290,1733536339737,-838.85,0.00012189,2]
[344530291,1733536339747,-150.0,0.00012198,2]
[344530292,1733536339757,-150.0,0.00012198,3]
[344530293,1733536339766,-1000.0,0.00012299,2]
[344530294,1733536339775,-2583.00530962,0.000123,2]
[344530295,1733536339785,-151.149036,0.00012305,2]
[344530296,1733536339795,-3000.0,0.0001231,2]
[344530297,1733536339804,-4000.0,0.00012324,10]
[344530298,1733536339813,-500.0,0.00012324,2]
[344530299,1733536339823,-500.0,0.00012324,2]
[344530300,1733536339831,-500.0,0.00012324,2]
[344530301,1733536339841,-584.42,0.00012324,2]
[344530302,1733536339850,-617.96,0.00012325,2]
[344530303,1733536339861,-500.0,0.00012325,2]
[344530304,1733536339870,-1237.14,0.00012325,2]
[344530305,1733536339879,-500.0,0.00012325,2]
[344530306,1733536339888,-500.0,0.00012325,2]
[344530307,1733536339900,-419.23152595,0.00012325,2]
[344530308,1733536339910,-578.46,0.00012325,2]
[344530309,1733536339919,-500.0,0.00012325,2]
[344530310,1733536339929,-1472.55,0.00012325,2]
[344530311,1733536339938,-500.0,0.00012325,2]
[344530312,1733536339948,-500.0,0.00012325,2]
[344530313,1733536339957,-569.73376279,0.00012325,2]
[344530314,1733536339967,-500.0,0.00012325,2]
[344530315,1733536339976,-500.0,0.00012325,2]
[344530316,1733536339986,-500.0,0.00012325,2]
[344530317,1733536339996,-1921.93,0.00012325,2]
[344530318,1733536340006,-6459.48,0.00012325,2]
[344530319,1733536340015,-665.33,0.00012325,2]
[344530320,1733536340026,-2738.63,0.00012325,2]
[344530321,1733536340035,-2307.66,0.00012325,2]
[344530322,1733536340044,-500.0,0.00012325,2]
[344530323,1733536340054,-500.0,0.00012325,2]
[344530324,1733536340064,-659.29,0.00012325,2]